[Event "Live Chess"]
[Site "Chess.com"]
[Date "2024.06.01"]
[Round "-"]
[White "TedUdale"]
[Black "Ocelot32"]
[Result "1-0"]
[WhiteElo "2171"]
[BlackElo "1389"]
[TimeControl "300"]
[EndTime "9:12:23 PDT"]
[Termination "TedUdale won on time"]

1. e4 {[%clk 0:04:56.8]} 1... e6 {[%clk 0:04:58.9]} 2. Nc3 {[%clk 0:04:54.9]}
2... d5 {[%clk 0:04:57.5]} 3. exd5 {[%clk 0:04:53.8]} 3... exd5 {[%clk
0:04:56.3]} 4. d4 {[%clk 0:04:53.4]} 4... Nf6 {[%clk 0:04:55.1]} 5. Nf3 {[%clk
0:04:52.4]} 5... Be7 {[%clk 0:04:54]} 6. Bf4 {[%clk 0:04:51.3]} 6... Bf5 {[%clk
0:04:52.4]} 7. Bd3 {[%clk 0:04:50.3]} 7... Bxd3 {[%clk 0:04:50.9]} 8. Qxd3
{[%clk 0:04:50.2]} 8... c6 {[%clk 0:04:49.7]} 9. O-O {[%clk 0:04:49.3]} 9... O-O
{[%clk 0:04:48.3]} 10. Rfe1 {[%clk 0:04:48.7]} 10... Nbd7 {[%clk 0:04:47.5]} 11.
Ng5 {[%clk 0:04:47.5]} 11... Re8 {[%clk 0:04:44.1]} 12. Be5 {[%clk 0:04:45.8]}
12... h6 {[%clk 0:04:36.5]} 13. Bxf6 {[%clk 0:04:43.4]} 13... Nxf6 {[%clk
0:04:33.5]} 14. Nf3 {[%clk 0:04:41.6]} 14... Qd6 {[%clk 0:04:28]} 15. Ne5 {[%clk
0:04:40.2]} 15... Qc7 {[%clk 0:04:19.9]} 16. Ne2 {[%clk 0:04:38.4]} 16... Bd6
{[%clk 0:04:17.1]} 17. f4 {[%clk 0:04:37.2]} 17... Ne4 {[%clk 0:04:13.5]} 18.
Ng3 {[%clk 0:04:35.8]} 18... Nxg3 {[%clk 0:04:07.7]} 19. hxg3 {[%clk 0:04:32.7]}
19... c5 {[%clk 0:04:05.3]} 20. dxc5 {[%clk 0:04:20.5]} 20... Bxe5 {[%clk
0:03:49.9]} 21. fxe5 {[%clk 0:04:15.5]} 21... Rxe5 {[%clk 0:03:47.6]} 22. Rxe5
{[%clk 0:04:07.3]} 22... Qxe5 {[%clk 0:03:45.9]} 23. Rf1 {[%clk 0:04:01.9]}
23... Rc8 {[%clk 0:03:39.1]} 24. b4 {[%clk 0:04:00.7]} 24... Qb2 {[%clk
0:03:27.6]} 25. Qxd5 {[%clk 0:03:57.9]} 25... Qxb4 {[%clk 0:03:25.8]} 26. Qxf7+
{[%clk 0:03:54.8]} 26... Kh8 {[%clk 0:03:24.5]} 27. Qg6 {[%clk 0:03:44.7]} 27...
Qxc5+ {[%clk 0:03:12.8]} 28. Kh2 {[%clk 0:03:43.7]} 28... b5 {[%clk 0:02:55.6]}
29. Rf7 {[%clk 0:03:40.8]} 29... Rg8 {[%clk 0:02:53.9]} 30. Rf5 {[%clk
0:03:33.6]} 30... Qxc2 {[%clk 0:02:45.8]} 31. Qe6 {[%clk 0:03:23.1]} 31... b4
{[%clk 0:02:31.9]} 32. Rh5 {[%clk 0:03:21.1]} 32... Qd2 {[%clk 0:02:26.2]} 33.
Rh4 {[%clk 0:03:10.2]} 33... a5 {[%clk 0:02:22.3]} 34. Qb6 {[%clk 0:03:04]}
34... Ra8 {[%clk 0:01:58.9]} 35. Qb7 {[%clk 0:03:00.1]} 35... Re8 {[%clk
0:01:50.7]} 36. Rg4 {[%clk 0:02:58.4]} 36... Rg8 {[%clk 0:01:48.2]} 37. Qf7
{[%clk 0:02:46.2]} 37... a4 {[%clk 0:01:35.7]} 38. Qc4 {[%clk 0:02:37.7]} 38...
Rb8 {[%clk 0:01:31.2]} 39. Qc7 {[%clk 0:02:36.7]} 39... Rg8 {[%clk 0:01:28.9]}
40. Qf7 {[%clk 0:02:29.3]} 40... b3 {[%clk 0:01:18.8]} 41. axb3 {[%clk
0:02:26.3]} 41... a3 {[%clk 0:01:17.5]} 42. Qa7 {[%clk 0:02:18.2]} 42... a2
{[%clk 0:01:16.4]} 43. Ra4 {[%clk 0:02:15.3]} 43... Qd1 {[%clk 0:00:54.6]} 44.
Rxa2 {[%clk 0:02:11.9]} 44... Qh5+ {[%clk 0:00:53.4]} 45. Kg1 {[%clk 0:02:08.2]}
45... Qd1+ {[%clk 0:00:52.5]} 46. Kf2 {[%clk 0:02:06.8]} 46... Rf8+ {[%clk
0:00:50.9]} 47. Ke3 {[%clk 0:02:02.1]} 47... Re8+ {[%clk 0:00:48.9]} 48. Kf4
{[%clk 0:01:59.4]} 48... Qf1+ {[%clk 0:00:42.7]} 49. Kg4 {[%clk 0:01:53.8]}
49... Re4+ {[%clk 0:00:35.6]} 50. Kh5 {[%clk 0:01:45.9]} 50... Qh1+ {[%clk
0:00:33.3]} 51. Kg6 {[%clk 0:01:44.1]} 51... Re6+ {[%clk 0:00:28.4]} 52. Kf7
{[%clk 0:01:34.4]} 52... Rf6+ {[%clk 0:00:23.8]} 53. Ke8 {[%clk 0:01:27.4]}
53... Qe1+ {[%clk 0:00:21.1]} 54. Qe7 {[%clk 0:01:10.3]} 54... Re6 {[%clk
0:00:17.6]} 55. Ra7 {[%clk 0:01:09.9]} 55... Rxe7+ {[%clk 0:00:15.4]} 56. Rxe7
{[%clk 0:01:09.8]} 56... Qb4 {[%clk 0:00:13.5]} 57. Kf7 {[%clk 0:01:05.6]} 57...
Kh7 {[%clk 0:00:12.7]} 58. Re3 {[%clk 0:00:59.8]} 58... Qb7+ {[%clk 0:00:10.5]}
59. Ke6 {[%clk 0:00:56.5]} 59... Qxg2 {[%clk 0:00:09.4]} 60. Ke5 {[%clk
0:00:53.3]} 60... Qb2+ {[%clk 0:00:07.4]} 61. Kf4 {[%clk 0:00:52]} 61... Qd4+
{[%clk 0:00:05.9]} 62. Re4 {[%clk 0:00:50.6]} 62... Qd2+ {[%clk 0:00:03.1]} 63.
Ke5 {[%clk 0:00:49.3]} 63... h5 {[%clk 0:00:00.8]} 64. b4 {[%clk 0:00:47.7]} 1-0

[Event "Live Chess"]
[Site "Chess.com"]
[Date "2024.06.01"]
[Round "-"]
[White "karina55"]
[Black "Zhevzh1k7"]
[Result "1-0"]
[WhiteElo "1735"]
[BlackElo "1081"]
[TimeControl "300"]
[EndTime "9:12:32 PDT"]
[Termination "karina55 won by checkmate"]

1. e4 {[%clk 0:04:57.4]} 1... c6 {[%clk 0:04:58.8]} 2. d4 {[%clk 0:04:55.2]}
2... d5 {[%clk 0:04:58.7]} 3. e5 {[%clk 0:04:54.3]} 3... c5 {[%clk 0:04:55.2]}
4. c3 {[%clk 0:04:51.3]} 4... e6 {[%clk 0:04:54.2]} 5. Nf3 {[%clk 0:04:49.4]}
5... Nc6 {[%clk 0:04:52.9]} 6. Be2 {[%clk 0:04:47.5]} 6... Qb6 {[%clk
0:04:52.4]} 7. O-O {[%clk 0:04:45.7]} 7... Bd7 {[%clk 0:04:51.2]} 8. dxc5 {[%clk
0:04:38.5]} 8... Bxc5 {[%clk 0:04:48.5]} 9. b4 {[%clk 0:04:37.5]} 9... Be7
{[%clk 0:04:46.8]} 10. Bb2 {[%clk 0:04:30]} 10... Nh6 {[%clk 0:04:39.7]} 11. a4
{[%clk 0:04:25.2]} 11... Nf5 {[%clk 0:04:34.8]} 12. Na3 {[%clk 0:04:15.1]} 12...
O-O {[%clk 0:04:30]} 13. Nb5 {[%clk 0:04:10.1]} 13... a6 {[%clk 0:04:21.8]} 14.
Nbd4 {[%clk 0:04:08.6]} 14... Nfxd4 {[%clk 0:04:18.4]} 15. Nxd4 {[%clk
0:03:58.6]} 15... Nxd4 {[%clk 0:04:15.3]} 16. cxd4 {[%clk 0:03:50.8]} 16... Qxb4
{[%clk 0:04:11.1]} 17. Ba3 {[%clk 0:03:48.4]} 17... Bxa4 {[%clk 0:04:04]} 18.
Qd3 {[%clk 0:03:14.9]} 18... Bb5 {[%clk 0:03:52.1]} 19. Qe3 {[%clk 0:03:10.7]}
19... Bxe2 {[%clk 0:03:46]} 20. Bxb4 {[%clk 0:03:06.3]} 20... Bxf1 {[%clk
0:03:43.5]} 21. Bxe7 {[%clk 0:03:03.5]} 21... Rfe8 {[%clk 0:03:40]} 22. Bc5
{[%clk 0:02:45.3]} 22... Bb5 {[%clk 0:03:35]} 23. h3 {[%clk 0:02:40.5]} 23... a5
{[%clk 0:03:28.6]} 24. g4 {[%clk 0:02:34.7]} 24... Bc4 {[%clk 0:03:26.6]} 25. f4
{[%clk 0:02:31.4]} 25... Reb8 {[%clk 0:03:17.3]} 26. Bb6 {[%clk 0:02:27.5]}
26... Ra6 {[%clk 0:03:12.6]} 27. Bxa5 {[%clk 0:02:23.2]} 27... b6 {[%clk
0:03:06.3]} 28. Bc3 {[%clk 0:02:21]} 28... Rxa1+ {[%clk 0:03:00.9]} 29. Bxa1
{[%clk 0:02:19.7]} 29... b5 {[%clk 0:03:00]} 30. Bb2 {[%clk 0:02:14.9]} 30... b4
{[%clk 0:02:57.1]} 31. f5 {[%clk 0:02:12.8]} 31... exf5 {[%clk 0:02:45.9]} 32.
gxf5 {[%clk 0:02:11.2]} 32... b3 {[%clk 0:02:39]} 33. e6 {[%clk 0:02:07.5]}
33... Kf8 {[%clk 0:02:35.3]} 34. Ba3+ {[%clk 0:02:03.9]} 34... Ke8 {[%clk
0:02:32]} 35. Qg5 {[%clk 0:01:49.7]} 35... Rb7 {[%clk 0:02:24.3]} 36. Qxg7
{[%clk 0:01:47.8]} 36... fxe6 {[%clk 0:02:10.4]} 37. Qxb7 {[%clk 0:01:45.6]}
37... exf5 {[%clk 0:02:06.6]} 38. Qe7# {[%clk 0:01:44]} 1-0

[Event "Live Chess"]
[Site "Chess.com"]
[Date "2024.06.01"]
[Round "-"]
[White "13Alexey"]
[Black "PedroCI"]
[Result "1-0"]
[WhiteElo "723"]
[BlackElo "1252"]
[TimeControl "300"]
[EndTime "9:12:46 PDT"]
[Termination "13Alexey won by checkmate"]

1. d4 {[%clk 0:04:58.5]} 1... d5 {[%clk 0:04:58.4]} 2. Bf4 {[%clk 0:04:57.4]}
2... Nc6 {[%clk 0:04:51.6]} 3. e3 {[%clk 0:04:56.1]} 3... Nf6 {[%clk 0:04:49.4]}
4. Bd3 {[%clk 0:04:54.8]} 4... e6 {[%clk 0:04:39.3]} 5. Nf3 {[%clk 0:04:53.3]}
5... Bd6 {[%clk 0:04:37.3]} 6. Bg3 {[%clk 0:04:49]} 6... Ne4 {[%clk 0:04:32.7]}
7. c3 {[%clk 0:04:44.7]} 7... Nxg3 {[%clk 0:04:30.9]} 8. hxg3 {[%clk 0:04:43]}
8... b6 {[%clk 0:04:22.7]} 9. Rxh7 {[%clk 0:04:40.9]} 9... Rxh7 {[%clk
0:04:20.4]} 10. Bxh7 {[%clk 0:04:38.2]} 10... g6 {[%clk 0:04:19.5]} 11. Qd3
{[%clk 0:04:35.6]} 11... Qf6 {[%clk 0:04:15.9]} 12. Nbd2 {[%clk 0:04:25.6]}
12... Qg7 {[%clk 0:04:14.7]} 13. Bxg6 {[%clk 0:04:24.4]} 13... fxg6 {[%clk
0:04:13.1]} 14. O-O-O {[%clk 0:04:23]} 14... Bb7 {[%clk 0:04:07]} 15. Ng5 {[%clk
0:04:18.1]} 15... Qf6 {[%clk 0:03:49.2]} 16. f4 {[%clk 0:04:15.1]} 16... O-O-O
{[%clk 0:03:45.5]} 17. Rh1 {[%clk 0:04:10.8]} 17... Rh8 {[%clk 0:03:13.2]} 18.
Rxh8+ {[%clk 0:04:08.9]} 18... Qxh8 {[%clk 0:03:12.7]} 19. Nxe6 {[%clk
0:04:07.9]} 19... Qh1+ {[%clk 0:03:10.7]} 20. Kc2 {[%clk 0:04:06.4]} 20... Qxg2
{[%clk 0:03:09.4]} 21. Qxg6 {[%clk 0:04:00.6]} 21... Ne7 {[%clk 0:03:00.7]} 22.
Qe8# {[%clk 0:03:55.6]} 1-0

[Event "Live Chess"]
[Site "Chess.com"]
[Date "2024.06.01"]
[Round "-"]
[White "GeorgianaMorea"]
[Black "viktor_forever1994"]
[Result "1-0"]
[WhiteElo "1998"]
[BlackElo "1447"]
[TimeControl "300"]
[EndTime "9:12:53 PDT"]
[Termination "GeorgianaMorea won by checkmate"]

1. c4 {[%clk 0:04:52.3]} 1... e5 {[%clk 0:04:58.5]} 2. Nc3 {[%clk 0:04:48.9]}
2... Nf6 {[%clk 0:04:58.4]} 3. d3 {[%clk 0:04:48.2]} 3... Bb4 {[%clk 0:04:56.5]}
4. g3 {[%clk 0:04:46.6]} 4... a5 {[%clk 0:04:55.4]} 5. Bg2 {[%clk 0:04:43.4]}
5... O-O {[%clk 0:04:55.3]} 6. e4 {[%clk 0:04:42.8]} 6... c6 {[%clk 0:04:48.2]}
7. Ne2 {[%clk 0:04:41.4]} 7... d5 {[%clk 0:04:44.3]} 8. cxd5 {[%clk 0:04:29.6]}
8... cxd5 {[%clk 0:04:44.2]} 9. exd5 {[%clk 0:04:27.2]} 9... Nxd5 {[%clk
0:04:41]} 10. O-O {[%clk 0:04:26.2]} 10... Nxc3 {[%clk 0:04:24.4]} 11. bxc3
{[%clk 0:04:20.8]} 11... Be7 {[%clk 0:04:11.4]} 12. d4 {[%clk 0:04:16.2]} 12...
Bf6 {[%clk 0:03:59.1]} 13. Be3 {[%clk 0:04:09.9]} 13... Re8 {[%clk 0:03:56.5]}
14. Qc2 {[%clk 0:04:07]} 14... Ra6 {[%clk 0:03:42.3]} 15. Rfd1 {[%clk
0:03:49.8]} 15... exd4 {[%clk 0:03:23.6]} 16. Nxd4 {[%clk 0:03:41.5]} 16... Rd6
{[%clk 0:03:14.3]} 17. Nb5 {[%clk 0:03:31.5]} 17... Rxd1+ {[%clk 0:03:00.8]} 18.
Rxd1 {[%clk 0:03:31.4]} 18... Qe7 {[%clk 0:02:49.6]} 19. Bf4 {[%clk 0:03:06.4]}
19... Bg4 {[%clk 0:02:36.2]} 20. Rc1 {[%clk 0:02:54.2]} 20... Be6 {[%clk
0:02:33.1]} 21. Nd6 {[%clk 0:02:48.2]} 21... Rd8 {[%clk 0:02:25.6]} 22. Nxb7
{[%clk 0:02:45.5]} 22... Rd5 {[%clk 0:02:17.8]} 23. Bxd5 {[%clk 0:02:22.5]}
23... Bxd5 {[%clk 0:02:17.7]} 24. Bxb8 {[%clk 0:02:21.5]} 24... Qxb7 {[%clk
0:02:11.9]} 25. Rb1 {[%clk 0:02:20.4]} 25... Qc6 {[%clk 0:01:47.4]} 26. Bf4
{[%clk 0:02:14.1]} 26... Bh1 {[%clk 0:01:42.8]} 27. Rb8+ {[%clk 0:02:11.8]}
27... Bd8 {[%clk 0:01:36.6]} 28. Rxd8+ {[%clk 0:02:10.4]} 28... Qe8 {[%clk
0:01:35]} 29. Rxe8# {[%clk 0:02:09.6]} 1-0

[Event "Live Chess"]
[Site "Chess.com"]
[Date "2024.06.01"]
[Round "-"]
[White "RamsayFlayer"]
[Black "GEMdzq"]
[Result "0-1"]
[WhiteElo "1964"]
[BlackElo "2339"]
[TimeControl "300"]
[EndTime "9:12:58 PDT"]
[Termination "GEMdzq won by resignation"]

1. e4 {[%clk 0:04:56.3]} 1... Nf6 {[%clk 0:04:57]} 2. e5 {[%clk 0:04:54.6]} 2...
Nd5 {[%clk 0:04:56.1]} 3. c4 {[%clk 0:04:50.9]} 3... Nb6 {[%clk 0:04:54.4]} 4.
d4 {[%clk 0:04:50.4]} 4... d6 {[%clk 0:04:53.2]} 5. f4 {[%clk 0:04:50]} 5... g6
{[%clk 0:04:52]} 6. Nf3 {[%clk 0:04:47.7]} 6... Bg7 {[%clk 0:04:50.5]} 7. Nc3
{[%clk 0:04:42.1]} 7... O-O {[%clk 0:04:48.5]} 8. Be2 {[%clk 0:04:34.3]} 8...
dxe5 {[%clk 0:04:46.3]} 9. fxe5 {[%clk 0:04:33]} 9... c5 {[%clk 0:04:44]} 10. d5
{[%clk 0:04:21.2]} 10... Bg4 {[%clk 0:04:42.9]} 11. Bf4 {[%clk 0:04:10.4]} 11...
N8d7 {[%clk 0:04:41.7]} 12. O-O {[%clk 0:03:41.4]} 12... Bxf3 {[%clk 0:04:39.7]}
13. Bxf3 {[%clk 0:03:39.6]} 13... Nxe5 {[%clk 0:04:39]} 14. Bxe5 {[%clk
0:03:34.1]} 14... Bxe5 {[%clk 0:04:38.9]} 15. d6 {[%clk 0:03:32]} 15... Qxd6
{[%clk 0:04:32.4]} 16. Qxd6 {[%clk 0:03:28.6]} 16... exd6 {[%clk 0:04:31.7]} 17.
Bxb7 {[%clk 0:03:28]} 17... Nxc4 {[%clk 0:04:25.8]} 18. Bxa8 {[%clk 0:03:21.8]}
18... Rxa8 {[%clk 0:04:25.7]} 19. Nd5 {[%clk 0:03:13.7]} 19... Nxb2 {[%clk
0:04:21.4]} 20. Ne7+ {[%clk 0:03:01.2]} 20... Kg7 {[%clk 0:04:17.3]} 21. Nc6
{[%clk 0:02:59.4]} 21... Bc3 {[%clk 0:03:35.9]} 22. Rac1 {[%clk 0:02:46.3]}
22... Bd2 {[%clk 0:03:33.7]} 23. Rc2 {[%clk 0:02:43.6]} 23... Be3+ {[%clk
0:03:32.8]} 24. Kh1 {[%clk 0:02:42.4]} 24... Nd3 {[%clk 0:02:58.5]} 25. Rf3
{[%clk 0:01:47]} 25... Ne1 {[%clk 0:02:56.6]} 26. Rxe3 {[%clk 0:01:45]} 26...
Nxc2 {[%clk 0:02:55.3]} 27. Re7 {[%clk 0:01:38.3]} 27... Rc8 {[%clk 0:02:45.4]}
28. Nxa7 {[%clk 0:01:33.9]} 28... Rb8 {[%clk 0:02:39.8]} 29. h3 {[%clk
0:01:31.1]} 29... Nd4 {[%clk 0:02:37.4]} 30. Nc6 {[%clk 0:01:26.7]} 30... Nxc6
{[%clk 0:02:36.2]} 0-1

[Event "Live Chess"]
[Site "Chess.com"]
[Date "2024.06.01"]
[Round "-"]
[White "NeilDruggan73"]
[Black "CarmelJane"]
[Result "0-1"]
[WhiteElo "1735"]
[BlackElo "2116"]
[TimeControl "300"]
[EndTime "9:13:04 PDT"]
[Termination "CarmelJane won by resignation"]

1. d4 {[%clk 0:04:56.5]} 1... Nf6 {[%clk 0:04:58.6]} 2. Bg5 {[%clk 0:04:54]}
2... e6 {[%clk 0:04:57]} 3. e4 {[%clk 0:04:50.8]} 3... h6 {[%clk 0:04:55.4]} 4.
Bxf6 {[%clk 0:04:48.1]} 4... Qxf6 {[%clk 0:04:55.3]} 5. c3 {[%clk 0:04:46.5]}
5... d6 {[%clk 0:04:54.4]} 6. Bc4 {[%clk 0:04:42.6]} 6... Qg5 {[%clk 0:04:49.5]}
7. g3 {[%clk 0:04:35.5]} 7... d5 {[%clk 0:04:41.3]} 8. Nf3 {[%clk 0:04:23.5]}
8... Qd8 {[%clk 0:04:35.9]} 9. exd5 {[%clk 0:04:21.2]} 9... exd5 {[%clk
0:04:35.8]} 10. Bd3 {[%clk 0:04:19.4]} 10... Bg4 {[%clk 0:04:31.6]} 11. Nbd2
{[%clk 0:04:05.9]} 11... Be7 {[%clk 0:04:29.3]} 12. Qb3 {[%clk 0:04:01.4]} 12...
b6 {[%clk 0:04:07]} 13. O-O-O {[%clk 0:03:52.6]} 13... O-O {[%clk 0:04:03.9]}
14. Rde1 {[%clk 0:03:51.1]} 14... a5 {[%clk 0:03:59.7]} 15. a4 {[%clk
0:03:47.8]} 15... c5 {[%clk 0:03:51.4]} 16. dxc5 {[%clk 0:03:08.9]} 16... Bxc5
{[%clk 0:03:51.3]} 17. Nd4 {[%clk 0:02:47.8]} 17... Bxd4 {[%clk 0:03:42]} 18.
cxd4 {[%clk 0:02:41.6]} 18... Nc6 {[%clk 0:03:41.6]} 19. Bb1 {[%clk 0:02:04.5]}
19... Nxd4 {[%clk 0:03:34.7]} 20. Qd3 {[%clk 0:01:56.2]} 20... Rc8+ {[%clk
0:03:33.6]} 21. Bc2 {[%clk 0:01:43.3]} 21... Rxc2+ {[%clk 0:03:32.4]} 22. Qxc2
{[%clk 0:01:41.5]} 22... Nxc2 {[%clk 0:03:31.5]} 23. Kxc2 {[%clk 0:01:39.5]}
23... Bf5+ {[%clk 0:03:23.5]} 24. Kd1 {[%clk 0:01:35]} 24... Qc7 {[%clk
0:03:20.3]} 0-1

[Event "Live Chess"]
[Site "Chess.com"]
[Date "2024.06.01"]
[Round "-"]
[White "TheSmoulderingMaster"]
[Black "Bradfield133"]
[Result "0-1"]
[WhiteElo "1731"]
[BlackElo "2027"]
[TimeControl "300"]
[EndTime "9:13:20 PDT"]
[Termination "Bradfield133 won by resignation"]

1. e4 {[%clk 0:04:57.4]} 1... c5 {[%clk 0:04:58.7]} 2. Nf3 {[%clk 0:04:53.6]}
2... Nc6 {[%clk 0:04:57.5]} 3. d4 {[%clk 0:04:52.6]} 3... cxd4 {[%clk
0:04:56.4]} 4. Nxd4 {[%clk 0:04:51.8]} 4... g6 {[%clk 0:04:55.6]} 5. Bc4 {[%clk
0:04:48.8]} 5... Bg7 {[%clk 0:04:51.8]} 6. Be3 {[%clk 0:04:47.8]} 6... Nf6
{[%clk 0:04:50.2]} 7. Nc3 {[%clk 0:04:42.9]} 7... Qa5 {[%clk 0:04:46.7]} 8. Nb3
{[%clk 0:04:40.2]} 8... Qc7 {[%clk 0:04:44.1]} 9. O-O {[%clk 0:04:38.3]} 9...
O-O {[%clk 0:04:41.2]} 10. f4 {[%clk 0:04:37.2]} 10... d6 {[%clk 0:04:29.8]} 11.
Qf3 {[%clk 0:04:29.8]} 11... Bd7 {[%clk 0:04:13.7]} 12. Rad1 {[%clk 0:04:26.9]}
12... a6 {[%clk 0:03:59]} 13. f5 {[%clk 0:04:21]} 13... Ne5 {[%clk 0:03:56]} 14.
Qe2 {[%clk 0:04:14.9]} 14... Qxc4 {[%clk 0:03:54.5]} 15. Qe1 {[%clk 0:04:10.9]}
15... Qc7 {[%clk 0:03:45.9]} 16. Bg5 {[%clk 0:04:08.1]} 16... Bc6 {[%clk
0:03:36.5]} 17. Qd2 {[%clk 0:04:05.7]} 17... Nc4 {[%clk 0:03:25.5]} 18. Qe2
{[%clk 0:04:01.8]} 18... Nxb2 {[%clk 0:03:22.4]} 19. Rb1 {[%clk 0:03:55.2]}
19... Na4 {[%clk 0:03:17.7]} 20. fxg6 {[%clk 0:03:54.4]} 20... hxg6 {[%clk
0:03:10.1]} 21. Nxa4 {[%clk 0:03:52.6]} 21... Bxa4 {[%clk 0:03:07.1]} 22. Nd4
{[%clk 0:03:50.7]} 22... Qc5 {[%clk 0:02:53.7]} 23. Be3 {[%clk 0:03:47.8]} 23...
Qe5 {[%clk 0:02:51.3]} 24. Rxb7 {[%clk 0:03:41]} 24... Qxe4 {[%clk 0:02:47.6]}
25. Rf4 {[%clk 0:03:31.7]} 25... Qxb7 {[%clk 0:02:44]} 0-1

[Event "Live Chess"]
[Site "Chess.com"]
[Date "2024.06.01"]
[Round "-"]
[White "Ratt6809"]
[Black "dl_chess"]
[Result "0-1"]
[WhiteElo "296"]
[BlackElo "1171"]
[TimeControl "300"]
[EndTime "9:13:22 PDT"]
[Termination "dl_chess won by resignation"]

1. e4 {[%clk 0:04:56.8]} 1... e6 {[%clk 0:04:58.3]} 2. Nf3 {[%clk 0:04:55.6]}
2... d5 {[%clk 0:04:56.7]} 3. exd5 {[%clk 0:04:53.6]} 3... exd5 {[%clk
0:04:55.9]} 4. Qe2+ {[%clk 0:04:52]} 4... Be6 {[%clk 0:04:50.7]} 5. Nc3 {[%clk
0:04:50.1]} 5... c6 {[%clk 0:04:47.9]} 6. d3 {[%clk 0:04:46.2]} 6... Bd6 {[%clk
0:04:45.7]} 7. Bg5 {[%clk 0:04:38.4]} 7... Nf6 {[%clk 0:04:39.1]} 8. O-O-O
{[%clk 0:04:31.3]} 8... Nbd7 {[%clk 0:04:37.9]} 9. Bxf6 {[%clk 0:04:21.6]} 9...
Qxf6 {[%clk 0:04:35.8]} 10. g3 {[%clk 0:04:08.5]} 10... O-O {[%clk 0:04:34.5]}
11. Bh3 {[%clk 0:04:07.2]} 11... Rfe8 {[%clk 0:04:33.1]} 12. g4 {[%clk
0:04:00.8]} 12... Bxg4 {[%clk 0:04:27.2]} 13. Bxg4 {[%clk 0:03:58.6]} 13... Rxe2
{[%clk 0:04:24.8]} 14. Nxe2 {[%clk 0:03:53.9]} 14... Bf4+ {[%clk 0:04:19.6]} 15.
Nxf4 {[%clk 0:03:51.6]} 15... Qxf4+ {[%clk 0:04:18.6]} 16. Kb1 {[%clk 0:03:50]}
16... Qxg4 {[%clk 0:04:15]} 17. Rde1 {[%clk 0:03:46.6]} 17... Qxf3 {[%clk
0:04:12.3]} 18. h4 {[%clk 0:03:40.5]} 18... h6 {[%clk 0:04:09.8]} 19. c4 {[%clk
0:03:31.7]} 19... dxc4 {[%clk 0:04:05.2]} 20. dxc4 {[%clk 0:03:30.3]} 20... Nf6
{[%clk 0:04:03.6]} 21. Rd1 {[%clk 0:03:26.1]} 21... Re8 {[%clk 0:04:01.3]} 22.
Rhe1 {[%clk 0:03:22.6]} 22... Rxe1 {[%clk 0:03:56.5]} 23. Rxe1 {[%clk
0:03:20.6]} 23... Qxf2 {[%clk 0:03:51.1]} 24. Rd1 {[%clk 0:03:16.4]} 24... Qf5+
{[%clk 0:03:40]} 25. Kc1 {[%clk 0:03:09.3]} 25... Qf4+ {[%clk 0:03:35.2]} 26.
Kb1 {[%clk 0:03:06.1]} 26... Qe4+ {[%clk 0:03:31.2]} 27. Ka1 {[%clk 0:03:03.8]}
27... Qe2 {[%clk 0:03:26.1]} 28. Rd8+ {[%clk 0:03:01.8]} 28... Kh7 {[%clk
0:03:23.6]} 29. a4 {[%clk 0:02:57.8]} 29... Qe1+ {[%clk 0:03:20]} 30. Ka2 {[%clk
0:02:56.2]} 30... Qb4 {[%clk 0:03:14.5]} 31. Rf8 {[%clk 0:02:47.2]} 31... Qxa4+
{[%clk 0:03:12.5]} 32. Kb1 {[%clk 0:02:45.8]} 32... Qd1+ {[%clk 0:03:07.9]} 33.
Ka2 {[%clk 0:02:44.1]} 33... Kg6 {[%clk 0:03:05.6]} 34. b4 {[%clk 0:02:40.1]}
34... Qa4+ {[%clk 0:03:01.3]} 35. Kb2 {[%clk 0:02:38.5]} 35... Qxb4+ {[%clk
0:03:00.5]} 36. Ka2 {[%clk 0:02:37]} 36... Qxf8 {[%clk 0:02:59.3]} 0-1